fUSD/lending_fUSD_20240329
["ID","MTS","AMOUNT","RATE_DAILY","PERIOD"]
[320992083,1711732253503,-151.0,0.00052328,120]
[320992084,1711732253513,-4227.5,0.00052328,120]
[320992085,1711732253522,-500.0,0.00052328,120]
[320992086,1711732253530,-500.0,0.00052328,120]
[320992087,1711732253540,-639.06,0.00052328,120]
[320992088,1711732253549,-480.598738,0.00052328,120]
[320992089,1711732253558,-16788.45,0.00052328,120]
[320992090,1711732253567,-5650.1,0.00052328,120]
[320992091,1711732253576,-500.0,0.00052328,120]
[320992092,1711732253585,-500.0,0.00052328,7]
[320992093,1711732253594,-500.0,0.00052328,120]
[320992094,1711732253603,-500.0,0.00052328,120]
[320992095,1711732253613,-500.0,0.00052328,120]
[320992096,1711732253622,-3741.11,0.00052328,120]
[320992097,1711732253631,-229.36559312,0.00052328,120]
[320992098,1711732253640,-4021.4,0.00052328,120]
[320992099,1711732253649,-2018.41,0.00052328,120]
[320992100,1711732253659,-151.0,0.00052328,120]
[320992101,1711732253668,-1018.15,0.00052328,120]
[320992102,1711732253677,-500.0,0.00052328,120]
[320992103,1711732253686,-500.0,0.00052328,120]
[320992104,1711732253696,-500.0,0.00052328,120]
[320992105,1711732253709,-500.0,0.00052328,120]
[320992106,1711732253720,-2719.17,0.00052328,120]
[320992107,1711732253732,-151.0,0.00052328,120]
[320992108,1711732253744,-500.0,0.00052328,120]
[320992109,1711732253754,-500.0,0.00052328,120]
[320992110,1711732253764,-2275.1,0.00052328,120]
[320992111,1711732253775,-518.98,0.00052328,120]
[320992112,1711732253786,-500.0,0.00052328,120]
[320992113,1711732253796,-500.0,0.00052328,120]
[320992114,1711732253807,-151.0,0.00052328,120]
[320992115,1711732253818,-1055.56,0.00052328,120]
[320992116,1711732253828,-500.0,0.00052328,120]
[320992117,1711732253838,-500.0,0.00052328,120]
[320992118,1711732253848,-3101.43,0.00052328,120]
[320992119,1711732253862,-500.0,0.00052328,120]
[320992120,1711732253872,-151.0,0.00052328,120]
[320992121,1711732253881,-3715.44,0.00052328,120]
[320992122,1711732253891,-500.0,0.00052328,120]
[320992123,1711732253900,-167.123996,0.00052328,120]
[320992124,1711732253910,-500.0,0.00052328,120]
[320992125,1711732253919,-500.0,0.00052328,120]
[320992126,1711732253928,-500.0,0.00052328,120]
[320992127,1711732253938,-500.0,0.00052328,120]
[320992128,1711732253947,-151.0,0.00052328,120]
[320992129,1711732253957,-4247.9,0.00052328,120]
[320992130,1711732253966,-892.02,0.00052328,120]
[320992131,1711732253976,-1042.94,0.00052328,120]
[320992132,1711732253985,-500.0,0.00052328,120]
[320992133,1711732253995,-500.0,0.00052328,120]
[320992134,1711732254004,-500.0,0.00052328,120]
[320992135,1711732254014,-500.0,0.00052328,120]
[320992136,1711732254023,-522.35907477,0.00052328,120]
[320992137,1711732254033,-1509.93,0.00052328,120]
[320992138,1711732254043,-830.5,0.00052328,120]
[320992139,1711732254052,-500.0,0.00052328,120]
[320992140,1711732254062,-175.735137,0.00052328,7]
[320992141,1711732254071,-500.0,0.00052328,120]
[320992142,1711732254080,-613.02,0.00052328,120]
[320992143,1711732254090,-1724.86,0.00052328,120]
[320992144,1711732254099,-500.0,0.00052328,120]
[320992145,1711732254108,-500.0,0.00052328,120]
[320992146,1711732254117,-500.0,0.00052328,120]
[320992147,1711732254127,-151.0,0.00052328,120]
[320992148,1711732254136,-500.0,0.00052328,120]
[320992149,1711732254145,-905.36,0.00052328,120]
[320992150,1711732254154,-225.95589,0.00052328,120]
[320992151,1711732254163,-500.0,0.00052328,120]
[320992152,1711732254172,-623.53,0.00052328,120]
[320992153,1711732254181,-802.8,0.00052328,120]
[320992154,1711732254191,-543.31,0.00052328,120]
[320992155,1711732254200,-500.0,0.00052328,120]
[320992156,1711732254209,-500.0,0.00052328,120]
[320992157,1711732254218,-1090.75,0.00052328,120]
[320992158,1711732254227,-151.0,0.00052328,120]
[320992159,1711732254236,-500.0,0.00052328,120]
[320992160,1711732254246,-746.52,0.00052328,120]
[320992161,1711732254255,-500.0,0.00052328,120]
[320992162,1711732254265,-516.61,0.00052328,120]
[320992163,1711732254274,-826.13,0.00052328,120]
[320992164,1711732254284,-567.02,0.00052328,120]
[320992165,1711732254293,-500.0,0.00052328,120]
[320992166,1711732254302,-500.0,0.00052328,120]
[320992167,1711732254312,-500.0,0.00052328,120]
[320992168,1711732254321,-727.16,0.00052328,120]
[320992169,1711732254330,-524.42,0.00052328,120]
[320992170,1711732254340,-3533.95,0.00052328,120]
[320992171,1711732254349,-678.08,0.00052328,120]
[320992172,1711732254358,-1640.68,0.00052328,120]
[320992173,1711732254367,-599.54,0.00052328,120]
[320992174,1711732254377,-823.88,0.00052328,120]
[320992175,1711732254386,-746.65,0.00052328,120]
[320992176,1711732254395,-1247.6,0.00052328,120]
[320992177,1711732254404,-500.0,0.00052328,80]
[320992178,1711732254414,-500.0,0.00052328,120]
[320992179,1711732254423,-2016.02,0.00052328,120]
[320992180,1711732254432,-500.0,0.00052328,120]
[320992181,1711732254441,-500.0,0.00052328,120]
[320992182,1711732254450,-1049.64,0.00052328,120]
[320992183,1711732254459,-500.0,0.00052328,120]
[320992184,1711732254468,-500.0,0.00052328,120]
[320992185,1711732254478,-842.24,0.00052328,120]
[320992186,1711732254487,-2897.64,0.00052328,120]
[320992187,1711732254497,-500.0,0.00052328,120]
[320992188,1711732254506,-637.97,0.00052328,120]
[320992189,1711732254516,-151.0,0.00052328,120]
[320992190,1711732254525,-662.85,0.00052328,120]
[320992191,1711732254534,-500.0,0.00052328,120]
[320992192,1711732254544,-500.0,0.00052328,120]
[320992193,1711732254553,-515.79,0.00052328,120]
[320992194,1711732254562,-500.0,0.00052328,120]
[320992195,1711732254572,-500.0,0.00052328,120]
[320992196,1711732254581,-1329.88,0.00052328,120]
[320992197,1711732254591,-3024.4,0.00052328,120]
[320992198,1711732254599,-500.0,0.00052328,120]
[320992199,1711732254609,-897.89,0.00052328,120]
[320992200,1711732254618,-500.0,0.00052328,120]
[320992201,1711732254627,-1703.04,0.00052328,120]
[320992202,1711732254637,-500.0,0.00052328,120]
[320992203,1711732254646,-2522.14,0.00052328,120]
[320992204,1711732254655,-500.0,0.00052328,120]
[320992205,1711732254665,-151.0,0.00052328,120]
[320992206,1711732254674,-5409.47,0.00052328,120]
[320992207,1711732254683,-500.0,0.00052328,120]
[320992208,1711732254693,-500.0,0.00052328,120]
[320992209,1711732254702,-500.0,0.00052328,120]
[320992210,1711732254712,-643.87,0.00052328,120]
[320992211,1711732254721,-1537.3,0.00052328,120]
[320992212,1711732254730,-500.0,0.00052328,120]
[320992213,1711732254739,-500.0,0.00052328,120]
[320992214,1711732254749,-1064.6,0.00052328,120]
[320992215,1711732254759,-500.0,0.00052328,120]
[320992216,1711732254768,-532.63,0.00052328,120]
[320992217,1711732254778,-500.0,0.00052328,120]
[320992218,1711732254787,-694.49,0.00052328,120]
[320992219,1711732254796,-570.48,0.00052328,120]
[320992220,1711732254805,-1623.67,0.00052328,120]
[320992221,1711732254815,-862.3,0.00052328,120]
[320992222,1711732254824,-500.0,0.00052328,120]
[320992223,1711732254834,-3565.13,0.00052328,120]
[320992224,1711732254843,-375.31023151,0.00052328,120]
[320992225,1711732254853,-500.0,0.00052328,60]
[320992226,1711732254865,-2312.51,0.00052328,120]
[320992227,1711732254874,-1378.2,0.00052328,120]
[320992228,1711732254883,-2825.19,0.00052328,120]
[320992229,1711732254892,-500.0,0.00052328,120]
[320992230,1711732254903,-1908.96,0.00052328,120]
[320992231,1711732254912,-500.0,0.00052328,120]
[320992232,1711732254921,-500.0,0.00052328,120]
[320992233,1711732254930,-3067.75,0.00052328,120]
[320992234,1711732254939,-1505.23,0.00052328,120]
[320992235,1711732254949,-500.0,0.00052328,120]
[320992236,1711732254958,-693.2,0.00052328,120]
[320992237,1711732254967,-618.84,0.00052328,120]
[320992238,1711732254976,-383.68891999,0.00052328,120]
[320992239,1711732254985,-500.0,0.00052328,120]
[320992240,1711732254995,-500.0,0.00052328,120]
[320992241,1711732255004,-500.0,0.00052328,120]
[320992242,1711732255013,-2231.03,0.00052328,120]
[320992243,1711732255022,-500.0,0.00052328,120]
[320992244,1711732255032,-7315.32,0.00052328,120]
[320992245,1711732255042,-1373.64,0.00052328,120]
[320992246,1711732255051,-363.43218349,0.00052328,120]
[320992247,1711732255060,-3551.47,0.00052328,120]
[320992248,1711732255069,-500.0,0.00052328,120]
[320992249,1711732255078,-2890.11,0.00052328,120]
[320992250,1711732255088,-3514.04,0.00052328,120]
[320992251,1711732255097,-500.0,0.00052328,120]
[320992252,1711732255107,-3001.64,0.00052328,120]
[320992253,1711732255116,-500.0,0.00052328,120]
[320992254,1711732255125,-2751.01,0.00052328,120]
[320992255,1711732255134,-548.73,0.00052328,120]
[320992256,1711732255143,-500.0,0.00052328,120]
[320992257,1711732255152,-500.0,0.00052328,120]
[320992258,1711732255161,-500.0,0.00052328,120]
[320992259,1711732255170,-9275.15,0.00052328,120]
[320992260,1711732255180,-500.0,0.00052328,120]
[320992261,1711732255189,-500.0,0.00052328,120]
[320992262,1711732255198,-500.0,0.00052328,120]
[320992263,1711732255208,-3751.45,0.00052328,120]
[320992264,1711732255218,-797.83,0.00052328,120]
[320992265,1711732255228,-500.0,0.00052328,120]
[320992266,1711732255237,-706.51,0.00052328,120]
[320992267,1711732255247,-500.0,0.00052328,120]
[320992268,1711732255256,-1203.12,0.00052328,120]
[320992269,1711732255265,-2915.8,0.00052328,120]
[320992270,1711732255275,-500.0,0.00052328,120]
[320992271,1711732255284,-11829.29,0.00052328,120]
[320992272,1711732255293,-400.78902836,0.00052328,120]
[320992273,1711732255303,-702.44,0.00052328,120]
[320992274,1711732255312,-428.61,0.00052328,120]
[320992275,1711732255321,-1475.36,0.00052328,120]
[320992276,1711732255331,-500.0,0.00052328,120]
[320992277,1711732255341,-500.0,0.00052328,120]
[320992278,1711732255350,-4876.82,0.00052328,120]
[320992279,1711732255359,-725.78,0.00052328,120]
[320992280,1711732255369,-1899.07,0.00052328,120]
[320992281,1711732255377,-4287.28,0.00052328,120]
[320992282,1711732255386,-651.91,0.00052328,120]
[320992283,1711732255395,-500.0,0.00052328,120]
[320992284,1711732255405,-500.0,0.00052328,120]
[320992285,1711732255414,-500.0,0.00052328,120]
[320992286,1711732255423,-500.0,0.00052328,120]
[320992287,1711732255433,-500.0,0.00052328,120]
[320992288,1711732255442,-3462.31,0.00052328,120]
[320992289,1711732255451,-151.0,0.00052328,120]
[320992290,1711732255461,-500.0,0.00052328,120]
[320992291,1711732255470,-151.0,0.00052328,120]
[320992292,1711732255480,-500.0,0.00052328,120]
[320992293,1711732255489,-1037.80820722,0.00052328,120]
[320992294,1711732255499,-500.0,0.00052328,120]
[320992295,1711732255509,-531.84,0.00052328,120]
[320992296,1711732255518,-500.0,0.00052328,120]
[320992297,1711732255575,-970.04,0.00052328,120]
[320992298,1711732255584,-500.0,0.00052328,120]
[320992299,1711732255593,-151.0,0.00052328,120]
[320992300,1711732255601,-2146.07,0.00052328,120]
[320992301,1711732255610,-503.26,0.00052328,120]
[320992302,1711732255619,-546.78,0.00052328,120]
[320992303,1711732255627,-502.88,0.00052328,120]
[320992304,1711732255636,-2298.97,0.00052328,120]
[320992305,1711732255645,-978.57,0.00052328,120]
[320992306,1711732255654,-3430.95,0.00052328,120]
[320992307,1711732255663,-500.0,0.00052328,120]
[320992308,1711732255673,-151.0,0.00052328,14]
[320992309,1711732255683,-500.0,0.00052328,120]
[320992310,1711732255691,-1165.91,0.00052328,120]
[320992311,1711732255701,-500.0,0.00052328,120]
[320992312,1711732255710,-4577.78,0.00052328,21]
[320992313,1711732255719,-151.0,0.00052328,120]
[320992314,1711732255728,-656.94,0.00052328,120]
[320992315,1711732255737,-500.0,0.00052328,2]
[320992316,1711732255746,-1000.0,0.00052333,120]
[320992317,1711732255755,-155.61103005,0.00052343,60]
[320992318,1711732255764,-1000.0,0.0005238,120]
[320992319,1711732255773,-1000.0,0.00052426,120]
[320992320,1711732255782,-1000.0,0.00052473,120]
[320992321,1711732255791,-10072.4209,0.00052502,2]
[320992322,1711732255800,-1000.0,0.00052519,120]
[320992323,1711732255810,-697.59,0.00052522,30]
[320992324,1711732255819,-1000.0,0.00052566,120]
[320992325,1711732255829,-202.12055948,0.000526,4]
[320992326,1711732255837,-200.0,0.000526,2]
[320992327,1711732255847,-66472.48549244,0.000526,4]
[320992328,1711732255857,-2932.19148249,0.000526,30]
[320992329,1711732255869,-207.50831046,0.00052601,4]
[320992330,1711732255878,-500.0,0.00052602,120]
[320992331,1711732255887,-500.0,0.00052602,120]
[320992332,1711732255898,-500.0,0.00052602,120]
[320992333,1711732255907,-500.0,0.00052602,120]
[320992334,1711732255916,-391.05,0.00052602,120]
[320992335,1711732255925,-500.0,0.00052602,120]
[320992336,1711732255935,-500.0,0.00052602,120]
[320992337,1711732255944,-500.0,0.00052602,120]
[320992338,1711732255954,-590.42155726,0.00052602,120]
[320992339,1711732255963,-500.0,0.00052602,120]
[320992340,1711732255972,-500.0,0.00052602,15]
[320992341,1711732255981,-500.0,0.00052602,120]
[320992342,1711732255990,-500.0,0.00052602,120]
[320992343,1711732255999,-500.0,0.00052602,120]
[320992344,1711732256008,-500.0,0.00052602,120]
[320992345,1711732256018,-500.0,0.00052602,120]
[320992346,1711732256027,-363.87,0.00052602,120]
[320992347,1711732256036,-500.0,0.00052602,120]
[320992348,1711732256045,-452.25,0.00052602,120]
[320992349,1711732256054,-500.0,0.00052602,120]
[320992350,1711732256063,-500.0,0.00052602,120]
[320992351,1711732256072,-500.0,0.00052602,120]
[320992352,1711732256081,-500.0,0.00052602,120]
[320992353,1711732256090,-500.0,0.00052602,120]
[320992354,1711732256099,-500.0,0.00052602,120]
[320992355,1711732256108,-500.0,0.00052602,120]
[320992356,1711732256117,-500.0,0.00052602,120]
[320992357,1711732256126,-500.0,0.00052602,120]
[320992358,1711732256136,-500.0,0.00052602,120]
[320992359,1711732256145,-500.0,0.00052602,120]
[320992360,1711732256154,-500.0,0.00052602,120]
[320992361,1711732256164,-500.0,0.00052602,120]
[320992362,1711732256173,-345.01214302,0.00052602,120]
[320992363,1711732256181,-500.0,0.00052602,120]
[320992364,1711732256190,-500.0,0.00052602,120]
[320992365,1711732256199,-500.0,0.00052602,120]
[320992366,1711732256208,-500.0,0.00052602,120]
[320992367,1711732256217,-151.0,0.00052602,120]
[320992368,1711732256227,-500.0,0.00052602,120]
[320992369,1711732256235,-500.0,0.00052602,120]
[320992370,1711732256246,-500.0,0.00052602,120]
[320992371,1711732256255,-500.0,0.00052602,120]
[320992372,1711732256264,-553.23,0.00052602,120]
[320992373,1711732256273,-196.44,0.00052602,120]
[320992374,1711732256281,-500.0,0.00052602,120]
[320992375,1711732256291,-500.0,0.00052602,120]
[320992376,1711732256299,-500.0,0.00052602,120]
[320992377,1711732256309,-500.0,0.00052602,2]
[320992378,1711732256318,-500.0,0.00052602,120]
[320992379,1711732256328,-557.74,0.00052602,120]
[320992380,1711732256337,-599.96,0.00052602,120]
[320992381,1711732256346,-500.0,0.00052602,120]
[320992382,1711732256355,-500.0,0.00052602,120]
[320992383,1711732256364,-500.0,0.00052602,120]
[320992384,1711732256373,-151.0,0.00052602,120]
[320992385,1711732256382,-500.0,0.00052602,120]
[320992386,1711732256391,-151.0,0.00052602,120]
[320992387,1711732256399,-500.0,0.00052602,120]
[320992388,1711732256409,-151.0,0.00052602,120]
[320992389,1711732256418,-500.0,0.00052602,120]
[320992390,1711732256427,-671.55,0.00052602,120]
[320992391,1711732256436,-500.0,0.00052602,120]
[320992392,1711732256445,-500.0,0.00052602,120]
[320992393,1711732256454,-500.0,0.00052602,120]
[320992394,1711732256463,-500.0,0.00052602,120]
[320992395,1711732256472,-500.0,0.00052602,120]
[320992396,1711732256482,-500.0,0.00052602,120]
[320992397,1711732256491,-500.0,0.00052602,120]
[320992398,1711732256500,-997.84,0.00052602,120]
[320992399,1711732256509,-500.0,0.00052602,120]
[320992400,1711732256518,-317.97459373,0.00052602,120]
[320992401,1711732256527,-500.0,0.00052602,120]
[320992402,1711732256537,-500.0,0.00052602,120]
[320992403,1711732256546,-500.0,0.00052602,120]
[320992404,1711732256554,-533.61,0.00052602,120]
[320992405,1711732256564,-500.0,0.00052602,120]
[320992406,1711732256573,-500.0,0.00052602,120]
[320992407,1711732256582,-500.0,0.00052602,120]
[320992408,1711732256591,-500.0,0.00052602,120]
[320992409,1711732256599,-500.0,0.00052602,120]
[320992410,1711732256608,-500.0,0.00052602,120]
[320992411,1711732256618,-500.0,0.00052602,120]
[320992412,1711732256627,-500.0,0.00052602,120]
[320992413,1711732256637,-500.0,0.00052602,120]
[320992414,1711732256653,-500.0,0.00052602,120]
[320992415,1711732256668,-500.0,0.00052602,120]
[320992416,1711732256677,-500.0,0.00052602,120]
[320992417,1711732256686,-500.0,0.00052602,120]
[320992418,1711732256695,-665.65,0.00052602,120]
[320992419,1711732256705,-500.0,0.00052602,120]
[320992420,1711732256714,-500.0,0.00052602,120]
[320992421,1711732256723,-500.0,0.00052602,120]
[320992422,1711732256732,-500.0,0.00052602,120]
[320992423,1711732256740,-546.22,0.00052602,120]
[320992424,1711732256751,-284.67,0.00052602,120]
[320992425,1711732256760,-666.0,0.00052602,120]
[320992426,1711732256769,-500.0,0.00052602,120]
[320992427,1711732256778,-500.0,0.00052602,7]
[320992428,1711732256787,-500.0,0.00052602,120]
[320992429,1711732256796,-507.49,0.00052602,120]
[320992430,1711732256805,-500.0,0.00052602,120]
[320992431,1711732256814,-534.0,0.00052602,120]
[320992432,1711732256823,-500.0,0.00052602,120]
[320992433,1711732256833,-500.0,0.00052602,120]
[320992434,1711732256842,-500.0,0.00052602,120]
[320992435,1711732256851,-560.18788762,0.00052602,120]
[320992436,1711732256863,-500.0,0.00052602,120]
[320992437,1711732256872,-500.0,0.00052602,120]
[320992438,1711732256881,-476.82,0.00052602,30]
[320992439,1711732256889,-500.0,0.00052602,120]
[320992440,1711732256900,-500.0,0.00052602,120]
[320992441,1711732256909,-500.0,0.00052602,120]
[320992442,1711732256918,-500.0,0.00052602,120]
[320992443,1711732256926,-500.0,0.00052602,120]
[320992444,1711732256935,-500.0,0.00052602,120]
[320992445,1711732256944,-500.0,0.00052602,120]
[320992446,1711732256954,-500.0,0.00052602,120]
[320992447,1711732256963,-500.0,0.00052602,120]
[320992448,1711732256972,-500.0,0.00052602,120]
[320992449,1711732256982,-446.05,0.00052602,120]
[320992450,1711732256990,-500.0,0.00052602,120]
[320992451,1711732257000,-500.0,0.00052602,120]
[320992452,1711732257008,-621.29,0.00052602,120]
[320992453,1711732257018,-500.0,0.00052602,120]
[320992454,1711732257028,-500.0,0.00052602,120]
[320992455,1711732257038,-500.0,0.00052602,120]
[320992456,1711732257047,-500.0,0.00052602,120]
[320992457,1711732257056,-500.0,0.00052602,120]
[320992458,1711732257066,-500.0,0.00052602,120]
[320992459,1711732257075,-500.0,0.00052602,120]
[320992460,1711732257085,-500.0,0.00052602,120]
[320992461,1711732257094,-500.0,0.00052602,120]
[320992462,1711732257103,-239.48,0.00052602,120]
[320992463,1711732257112,-500.0,0.00052602,120]
[320992464,1711732257122,-520.26,0.00052602,120]
[320992465,1711732257132,-1906.05,0.00052602,120]
[320992466,1711732257142,-500.0,0.00052602,120]
[320992467,1711732257151,-500.0,0.00052602,120]
[320992468,1711732257161,-500.0,0.00052602,120]
[320992469,1711732257170,-500.0,0.00052602,120]
[320992470,1711732257180,-500.0,0.00052602,120]
[320992471,1711732257189,-386.83709821,0.00052602,120]
[320992472,1711732257198,-500.0,0.00052602,120]
[320992473,1711732257207,-187.81822692,0.00052602,120]
[320992474,1711732257217,-500.0,0.00052602,120]
[320992475,1711732257226,-500.0,0.00052602,120]
[320992476,1711732257235,-500.0,0.00052602,120]
[320992477,1711732257245,-500.0,0.00052602,120]
[320992478,1711732257254,-500.0,0.00052602,120]
[320992479,1711732257263,-500.0,0.00052602,120]
[320992480,1711732257272,-500.0,0.00052602,120]
[320992481,1711732257280,-500.0,0.00052602,120]
[320992482,1711732257289,-500.0,0.00052602,120]
[320992483,1711732257297,-500.0,0.00052602,120]
[320992484,1711732257306,-500.0,0.00052602,120]
[320992485,1711732257315,-184.87,0.00052602,120]
[320992486,1711732257324,-500.0,0.00052602,2]
[320992487,1711732257333,-500.0,0.00052602,120]
[320992488,1711732257342,-500.0,0.00052602,120]
[320992489,1711732257351,-500.0,0.00052602,2]
[320992490,1711732257360,-500.0,0.00052602,120]
[320992491,1711732257368,-500.0,0.00052602,120]
[320992492,1711732257377,-500.0,0.00052602,120]
[320992493,1711732257386,-500.0,0.00052602,120]
[320992494,1711732257395,-500.0,0.00052602,120]
[320992495,1711732257404,-500.0,0.00052602,120]
[320992496,1711732257413,-500.0,0.00052602,120]
[320992497,1711732257422,-684.29,0.00052602,120]
[320992498,1711732257430,-500.0,0.00052602,120]
[320992499,1711732257439,-260.01,0.00052602,120]
[320992500,1711732257449,-588.94,0.00052602,120]
[320992501,1711732257458,-500.0,0.00052602,120]
[320992502,1711732257467,-500.0,0.00052602,120]
[320992503,1711732257477,-539.83,0.00052602,120]
[320992504,1711732257486,-500.0,0.00052602,120]
[320992505,1711732257495,-500.0,0.00052602,120]
[320992506,1711732257504,-332.49601074,0.00052602,120]
[320992507,1711732257513,-500.0,0.00052602,120]
[320992508,1711732257522,-500.0,0.00052602,120]
[320992509,1711732257531,-170.02540297,0.00052602,120]
[320992510,1711732257540,-500.0,0.00052602,120]
[320992511,1711732257550,-500.0,0.00052602,120]
[320992512,1711732257559,-500.0,0.00052602,120]
[320992513,1711732257568,-500.0,0.00052602,120]
[320992514,1711732257578,-500.0,0.00052602,120]
[320992515,1711732257587,-500.0,0.00052602,120]
[320992516,1711732257596,-500.0,0.00052602,120]
[320992517,1711732257606,-1706.14,0.00052602,120]
[320992518,1711732257615,-500.0,0.00052602,120]
[320992519,1711732257624,-500.0,0.00052602,120]
[320992520,1711732257635,-500.0,0.00052602,120]
[320992521,1711732257644,-959.73,0.00052602,120]
[320992522,1711732257654,-500.0,0.00052602,120]
[320992523,1711732257664,-500.0,0.00052602,120]
[320992524,1711732257674,-500.0,0.00052602,120]
[320992525,1711732257683,-500.0,0.00052602,120]
[320992526,1711732257693,-516.58212312,0.00052602,120]
[320992527,1711732257703,-500.0,0.00052602,120]
[320992528,1711732257713,-7887.7,0.00052602,120]
[320992529,1711732257723,-500.0,0.00052602,120]
[320992530,1711732257732,-500.0,0.00052602,120]
[320992531,1711732257742,-540.13,0.00052602,120]
[320992532,1711732257753,-500.0,0.00052602,120]
[320992533,1711732257762,-500.0,0.00052602,120]
[320992534,1711732257772,-1600.31,0.00052602,120]
[320992535,1711732257782,-868.17,0.00052602,120]
[320992536,1711732257792,-500.0,0.00052602,120]
[320992537,1711732257802,-529.75967719,0.00052602,120]
[320992538,1711732257811,-583.92,0.00052602,120]
[320992539,1711732257821,-500.0,0.00052602,120]
[320992540,1711732257831,-500.0,0.00052602,120]
[320992541,1711732257841,-500.0,0.00052602,120]
[320992542,1711732257852,-500.0,0.00052602,120]
[320992543,1711732257866,-500.0,0.00052602,120]
[320992544,1711732257879,-500.0,0.00052602,120]
[320992545,1711732257889,-500.0,0.00052602,120]
[320992546,1711732257900,-500.0,0.00052602,120]
[320992547,1711732257912,-500.0,0.00052602,120]
[320992548,1711732257922,-666.09,0.00052602,120]
[320992549,1711732257933,-500.0,0.00052602,120]
[320992550,1711732257946,-275.06308887,0.00052602,120]
[320992551,1711732257958,-2866.09,0.00052602,120]
[320992552,1711732257968,-501.42,0.00052602,120]
[320992553,1711732257977,-534.19,0.00052602,120]
[320992554,1711732257988,-500.0,0.00052602,120]
[320992555,1711732258002,-695.15,0.00052602,120]
[320992556,1711732258012,-4227.5,0.00052602,120]
[320992557,1711732258022,-500.0,0.00052602,120]
[320992558,1711732258031,-500.0,0.00052602,120]
[320992559,1711732258041,-639.06,0.00052602,120]
[320992560,1711732258050,-5650.1,0.00052602,120]
[320992561,1711732258060,-16788.45,0.00052602,120]
[320992562,1711732258070,-500.0,0.00052602,120]
[320992563,1711732258080,-500.0,0.00052602,7]
[320992564,1711732258090,-499.67166792,0.00052602,120]
[320992565,1711732258099,-500.0,0.00052602,120]
[320992566,1711732258109,-500.0,0.00052602,120]
[320992567,1711732258118,-3741.11,0.00052602,120]
[320992568,1711732258128,-4021.4,0.00052602,120]
[320992569,1711732258137,-2018.41,0.00052602,120]
[320992570,1711732258147,-1018.15,0.00052602,120]
[320992571,1711732258156,-500.0,0.00052602,120]
[320992572,1711732258166,-500.0,0.00052602,120]
[320992573,1711732258176,-500.0,0.00052602,120]
[320992574,1711732258186,-183.36563649,0.00052602,120]
[320992575,1711732258196,-2719.17,0.00052602,120]
[320992576,1711732258206,-500.0,0.00052602,120]
[320992577,1711732258216,-500.0,0.00052602,120]
[320992578,1711732258226,-2275.1,0.00052602,120]
[320992579,1711732258235,-392.36842096,0.00052602,120]
[320992580,1711732258249,-1055.56,0.00052602,120]
[320992581,1711732258259,-500.0,0.00052602,120]
[320992582,1711732258269,-3101.43,0.00052602,120]